bitfinex/quotes_SOLUSD_20240913
["timestamp","ask_amount","ask_price","bid_price","bid_amount"]
[1726256624920,6.369752,138.12,138.09,12.70218262]
[1726256625119,6.369752,138.11,138.09,12.70218262]
[1726256625419,0.25098,138.16,138.09,12.70218262]
[1726256625632,6.37000994,138.15,138.09,12.70218262]
[1726256625833,6.37000994,138.14,138.09,12.70218262]
[1726256626033,6.37000994,138.13,138.09,12.70218262]
[1726256626240,6.37000994,138.12,138.09,12.70218262]
[1726256626452,6.37000994,138.11,138.09,12.70218262]
[1726256626742,6.37000994,138.1,138.07,23.0317]
[1726256626923,0.25098,138.16,138.09,12.70218262]
[1726256627123,6.36975405,138.15,138.09,12.70218262]
[1726256627326,6.36975405,138.14,138.09,12.70218262]
[1726256627641,6.36975405,138.13,138.09,12.70218262]
[1726256627846,6.36975405,138.12,138.1,12.70218262]
[1726256628029,6.36975405,138.11,138.1,12.70218262]
[1726256630454,6.36975405,138.11,138.08,23.776884]
[1726256630627,1.57024894,138.17,138.08,36.47906662]
[1726256630952,6.37000506,138.16,138.08,36.47906662]
[1726256631131,7.814764,138.15,138.08,36.47906662]
[1726256631332,7.814764,138.14,138.08,12.70218262]
[1726256631630,6.37000506,138.13,138.08,12.70218262]
[1726256631840,6.37000506,138.12,138.08,12.70218262]
[1726256632033,6.37000506,138.11,138.08,12.70218262]
[1726256632233,24.027864,138.17,138.08,12.70218262]
[1726256632450,0.12549,138.15,138.08,12.70218262]
[1726256632752,0.12549,138.15,138.09,12.70218262]
[1726256632753,6.36999815,138.14,138.09,12.70218262]
[1726256632957,6.36999815,138.13,138.09,12.70218262]
[1726256633255,0.12549,138.15,138.07,23.0317]
[1726256633256,6.36999815,138.12,138.08,12.70218262]
[1726256633437,6.36999815,138.11,138.09,12.70218262]
[1726256633639,0.12549,138.15,138.09,12.70218262]
[1726256633839,6.37000994,138.14,138.09,12.70218262]
[1726256634137,6.37000994,138.13,138.09,12.70218262]
[1726256634336,6.37000994,138.12,138.09,12.70218262]
[1726256634539,0.12549,138.15,138.09,12.70218262]
[1726256634540,6.37000994,138.11,138.09,12.70218262]
[1726256634760,0.12549,138.15,138.09,12.70218262]
[1726256634937,6.37000604,138.14,138.09,12.70218262]
[1726256635133,6.37000604,138.13,138.09,12.70218262]
[1726256635342,6.37000604,138.12,138.09,12.70218262]
[1726256635541,6.37000604,138.11,138.08,12.70218262]
[1726256635849,0.12549,138.15,138.08,12.70218262]
[1726256636148,6.36994551,138.14,138.08,12.70218262]
[1726256636350,6.36994551,138.13,138.08,12.70218262]
[1726256636536,6.36994551,138.12,138.08,12.70218262]
[1726256636729,6.36994551,138.11,138.08,12.70218262]
[1726256636930,0.12549,138.15,138.08,12.70218262]
[1726256637125,6.37000701,138.14,138.08,12.70218262]
[1726256637432,0.12549,138.15,138.08,12.70218262]
[1726256637433,6.37000701,138.13,138.08,12.70218262]
[1726256637634,6.37000701,138.12,138.08,12.70218262]
[1726256637831,6.37000701,138.11,138.08,12.70218262]
[1726256638035,0.12549,138.15,138.08,12.70218262]
[1726256638250,6.37000701,138.14,138.08,12.70218262]
[1726256638451,6.37000701,138.13,138.08,12.70218262]
[1726256638749,6.37000701,138.12,138.08,12.70218262]
[1726256638931,6.37000701,138.11,138.08,12.70218262]
[1726256639134,0.12549,138.15,138.07,35.73388262]
[1726256639333,6.37000799,138.14,138.07,35.73388262]
[1726256639548,0.12549,138.15,138.07,35.73388262]
[1726256639771,6.37000897,138.13,138.07,35.73388262]
[1726256639951,6.37000994,138.12,138.07,35.73388262]
[1726256640135,6.37000994,138.11,138.07,23.0317]
[1726256640338,6.37000994,138.1,138.07,23.0317]
[1726256640537,0.25098,138.15,138.07,23.0317]
[1726256640757,0.25098,138.15,138.07,35.73388262]
[1726256640758,6.37029012,138.14,138.07,35.73388262]
[1726256640954,6.37029012,138.13,138.07,23.0317]
[1726256641132,6.37029012,138.12,138.07,23.0317]
[1726256641338,6.37029012,138.11,138.07,23.0317]
[1726256641555,6.37029012,138.1,138.07,23.0317]
[1726256641855,0.12549,138.15,138.07,23.0317]
[1726256641856,0.25098,138.15,138.07,23.0317]
[1726256642035,0.12549,138.13,138.07,23.0317]
[1726256642644,6.37055509,138.12,138.07,23.0317]
[1726256642853,6.37055509,138.11,138.07,23.0317]
[1726256643055,6.37055509,138.1,138.07,23.0317]
[1726256643237,6.37055509,138.09,138.07,23.0317]
[1726256643449,0.12549,138.13,138.07,23.0317]
[1726256643649,6.37057957,138.12,138.07,23.0317]
[1726256643841,6.37057957,138.11,138.07,23.0317]
[1726256644040,6.37057957,138.1,138.07,23.0317]
[1726256644238,6.37057957,138.09,138.07,35.73388262]
[1726256644538,24.027864,138.14,138.07,35.73388262]
[1726256644539,0.25098,138.14,138.07,35.73388262]
[1726256644744,6.3702028,138.13,138.07,35.73388262]
[1726256644952,6.3702028,138.12,138.07,35.73388262]
[1726256645147,6.3702028,138.11,138.07,35.73388262]
[1726256645334,6.3702028,138.1,138.09,12.70218262]
[1726256645538,24.027864,138.17,138.09,12.70218262]
[1726256645763,0.12549,138.15,138.1,1.30877074]
[1726256646037,6.37002978,138.14,138.09,1.3088655]
[1726256646250,6.37002978,138.13,138.09,1.3088655]
[1726256646461,6.37002978,138.12,138.09,1.3088655]
[1726256646664,6.37002978,138.11,138.09,1.3088655]
[1726256646957,0.12549,138.15,138.09,1.30892756]
[1726256647279,6.370011,138.14,138.09,1.30892756]
[1726256647464,6.370011,138.13,138.09,1.30892756]
[1726256647637,6.370011,138.12,138.09,1.31990825]
[1726256647837,6.370011,138.11,138.09,1.31990825]
[1726256648154,0.12549,138.15,138.08,12.70218262]
[1726256648346,6.37000806,138.14,138.09,14.02132618]
[1726256648548,6.37000806,138.13,138.09,12.70218262]
[1726256648867,0.12549,138.16,138.07,23.0317]
[1726256648868,6.37000806,138.12,138.1,14.02056201]
[1726256649043,6.36977336,138.11,138.1,1.31837939]
[1726256649244,6.36977336,138.11,138.09,12.70218262]
[1726256649563,0.12549,138.16,138.09,12.70218262]
[1726256649777,6.36977833,138.15,138.09,12.70218262]
[1726256650065,6.36977833,138.14,138.09,12.70218262]
[1726256650237,6.36977833,138.13,138.09,12.70218262]
[1726256650438,6.36977833,138.12,138.09,12.70218262]
[1726256650734,6.36977833,138.11,138.09,12.70218262]
[1726256650934,0.12549,138.16,138.09,12.70218262]
[1726256651169,6.36974926,138.15,138.09,12.70218262]
[1726256651350,6.36974926,138.14,138.09,12.70218262]
[1726256651656,6.36974926,138.13,138.09,12.70218262]
[1726256651862,0.2438779,138.18,138.12,28.98108262]
[1726256652158,6.3686221,138.17,138.15,12.70218262]
[1726256652341,6.3686221,138.16,138.14,12.70218262]
[1726256652538,0.2438779,138.18,138.15,1.4146593]
[1726256652856,6.36819641,138.17,138.15,1.4146593]
[1726256653063,6.36819641,138.16,138.15,1.4146593]
[1726256653365,6.36819641,138.16,138.14,12.70218262]
[1726256653660,6.36819641,138.15,138.13,12.70218262]
[1726256653875,0.2438779,138.18,138.13,12.70218262]
[1726256654055,6.36853608,138.17,138.13,12.70218262]
[1726256654244,6.36853608,138.16,138.13,12.70218262]
[1726256654443,6.36853608,138.15,138.13,12.70218262]
[1726256654664,0.2438779,138.18,138.13,12.70218262]
[1726256654867,6.36856459,138.17,138.13,12.70218262]
[1726256655040,6.36856459,138.16,138.13,12.70218262]
[1726256655366,6.36856459,138.15,138.13,12.70218262]
[1726256655569,0.2438779,138.18,138.14,12.70218262]
[1726256656059,6.36859905,138.17,138.14,12.70218262]
[1726256656266,6.36859905,138.16,138.14,12.70218262]
[1726256656454,6.36859905,138.15,138.14,12.70218262]
[1726256657467,6.36859905,138.15,138.13,36.47906662]
[1726256657760,0.2438779,138.18,138.13,36.47906662]
[1726256657968,6.36860003,138.17,138.13,36.47906662]
[1726256658265,6.36860003,138.16,138.12,28.98108262]
[1726256658463,6.36860003,138.15,138.12,28.98108262]
[1726256658765,0.2438779,138.18,138.12,28.98108262]
[1726256658975,6.36882347,138.14,138.12,28.98108262]
[1726256659157,0.2438779,138.18,138.12,28.98108262]
[1726256659471,6.36882054,138.17,138.12,28.98108262]
[1726256660041,6.36882054,138.16,138.12,28.98108262]
[1726256660260,6.36882054,138.15,138.13,12.70218262]
[1726256660461,6.36882054,138.14,138.13,12.70218262]
[1726256662176,0.2438779,138.18,138.13,12.70218262]
[1726256662360,6.36860393,138.17,138.14,12.70218262]
[1726256662545,6.36860393,138.16,138.14,12.70218262]
[1726256662746,6.36860393,138.15,138.14,12.70218262]
[1726256664078,0.2438779,138.18,138.14,12.70218262]
[1726256664370,0.2438779,138.18,138.17,28.62558262]
[1726256664575,6.61158715,138.18,138.17,28.62558262]
[1726256665645,0.2438779,138.18,138.17,53.97313301]
[1726256666352,0.2438779,138.18,138.17,54.22411301]
[1726256667860,0.2438779,138.18,138.17,52.77893662]
[1726256669557,0.2438779,138.18,138.17,54.22586042]
[1726256670777,0.2438779,138.18,138.17,28.62558262]
[1726256672379,0.2438779,138.18,138.17,30.07225593]
[1726256672782,0.2438779,138.18,138.17,53.84913993]
[1726256673260,0.2438779,138.18,138.17,52.40246662]
[1726256673780,0.2438779,138.18,138.17,28.62558262]
[1726256674159,0.2438779,138.18,138.17,52.65344662]
[1726256674477,0.2438779,138.18,138.17,52.77893662]
[1726256686476,0.2438779,138.18,138.17,72.77893662]
[1726256686685,0.2561221,138.22,138.21,36.60455662]
[1726256687064,0.2561221,138.22,138.21,36.73004662]
[1726256688178,0.2561221,138.22,138.21,36.47906662]
[1726256688563,0.2561221,138.22,138.21,12.70218262]
[1726256691578,0.2561221,138.26,138.21,12.70218262]
[1726256691579,0.0122442,138.26,138.21,12.70218262]
[1726256691786,6.36649402,138.25,138.21,12.70218262]
[1726256691963,6.36649402,138.24,138.2,12.70218262]
[1726256692164,0.0122442,138.26,138.2,12.70218262]
[1726256692364,6.36649621,138.25,138.2,12.70218262]
[1726256692579,6.36649621,138.24,138.2,12.70218262]
[1726256692774,0.0122442,138.26,138.2,12.70218262]
[1726256692978,6.36649522,138.25,138.2,12.70218262]
[1726256693284,6.36649522,138.24,138.2,12.70218262]
[1726256693488,6.36649522,138.23,138.2,12.70218262]
[1726256693655,0.0122442,138.26,138.2,12.70218262]
[1726256693858,6.36646682,138.25,138.2,12.70218262]
[1726256694059,6.36646682,138.24,138.23,12.70218262]
[1726256695076,6.36603049,138.24,138.23,12.70218262]
[1726256695978,0.0122442,138.26,138.23,12.70218262]
[1726256696194,0.0122442,138.26,138.25,12.70218262]
[1726256696488,6.37792707,138.26,138.25,12.70218262]
[1726256698186,6.37792707,138.26,138.25,36.73004662]
[1726256698395,6.37792707,138.26,138.25,36.85553662]
[1726256698881,0.0122442,138.26,138.25,36.85553662]
[1726256700992,0.0122442,138.26,138.25,59.46793662]
[1726256701184,0.2561221,138.3,138.26,24.027864]
[1726256701377,0.2561221,138.3,138.29,12.70218262]
[1726256701575,6.62037301,138.3,138.29,12.70218262]
[1726256702092,6.62037301,138.3,138.29,23.776884]
[1726256702499,6.62037301,138.3,138.28,12.70218262]
[1726256702704,0.2561221,138.3,138.28,12.70218262]
[1726256702894,0.2561221,138.3,138.26,24.027864]
[1726256703206,6.36442553,138.29,138.26,24.027864]
[1726256703385,0.2561221,138.3,138.27,0.12549]
[1726256703585,6.36442653,138.29,138.28,36.47906662]
[1726256703796,6.36442653,138.29,138.28,12.70218262]
[1726256704292,6.36442653,138.29,138.28,36.47906662]
[1726256704698,0.2561221,138.3,138.28,38.04918448]
[1726256704893,0.2561221,138.3,138.29,36.60455662]
[1726256705707,6.62034348,138.3,138.29,36.60455662]
[1726256706410,6.62034348,138.3,138.29,36.73004662]
[1726256706577,0.2561221,138.3,138.29,36.73004662]
[1726256706898,6.62031008,138.3,138.29,36.73004662]
[1726256707603,0.2561221,138.34,138.3,0.25098]
[1726256707805,0.2561221,138.34,138.33,36.47906662]
[1726256708185,0.2561221,138.34,138.33,36.73004662]
[1726256708510,0.2561221,138.34,138.33,36.85553662]
[1726256708696,0.2561221,138.38,138.34,24.027864]
[1726256708885,0.2561221,138.38,138.37,36.47906662]
[1726256709594,0.2561221,138.38,138.37,36.60455662]
[1726256709819,0.2561221,138.38,138.37,36.73004662]
[1726256710097,15.1954,138.43,138.37,36.73004662]
[1726256710098,0.1848978,138.39,138.37,36.73004662]
[1726256710306,0.1848978,138.39,138.38,36.60455662]
[1726256710487,0.1848978,138.39,138.38,36.73004662]
[1726256710799,0.1848978,138.39,138.38,12.70218262]
[1726256711201,0.1848978,138.39,138.38,36.73004662]
[1726256711387,0.1848978,138.39,138.38,36.60455662]
[1726256711588,0.1848978,138.39,138.37,12.70218262]
[1726256711982,0.1848978,138.39,138.33,0.25098]
[1726256712206,0.1848978,138.39,138.35,12.70218262]
[1726256712987,0.1848978,138.39,138.36,12.70218262]
[1726256715093,0.1848978,138.39,138.35,12.70218262]
[1726256715686,0.1848978,138.39,138.33,36.60455662]
[1726256716206,0.1848978,138.39,138.34,12.70218262]
[1726256717013,0.1848978,138.39,138.28,15.4433]
[1726256717183,6.36251586,138.38,138.31,12.70218262]
[1726256717380,0.1848978,138.39,138.33,12.70218262]
[1726256718006,0.1848978,138.39,138.34,12.70218262]
[1726256719419,0.1848978,138.39,138.35,0.67326078]
[1726256719919,0.1848978,138.39,138.34,12.70218262]
[1726256720513,0.1848978,138.39,138.33,12.70218262]
[1726256720702,0.1848978,138.39,138.33,23.776884]
[1726256720887,1.62965674,138.39,138.33,23.776884]
[1726256721092,1.62965674,138.39,138.31,12.70218262]
[1726256721287,1.62965674,138.39,138.32,23.776884]
[1726256721288,6.362431,138.38,138.32,23.776884]
[1726256721598,1.62965674,138.39,138.32,23.776884]
[1726256721910,7.80710045,138.38,138.32,23.776884]
[1726256722108,0.1848978,138.39,138.32,36.47906662]
[1726256725002,1.62965674,138.39,138.32,36.47906662]
[1726256725230,1.62965674,138.39,138.32,23.776884]
[1726256725518,6.36174795,138.38,138.3,12.82767262]
[1726256725706,1.62965674,138.39,138.31,23.776884]
[1726256725914,6.36219566,138.38,138.31,36.47906662]
[1726256726115,0.1848978,138.39,138.31,36.47906662]
[1726256726500,0.1848978,138.39,138.32,12.70218262]
[1726256726697,0.1848978,138.39,138.33,36.47906662]
[1726256727117,0.1848978,138.39,138.33,12.70218262]
[1726256727317,6.36195842,138.38,138.32,12.82767262]
[1726256727615,1.62965674,138.39,138.32,23.776884]
[1726256727799,6.36203848,138.38,138.32,23.776884]
[1726256727995,0.1848978,138.39,138.32,36.47906662]
[1726256728200,6.36203848,138.38,138.32,36.47906662]
[1726256728417,0.1848978,138.39,138.32,36.47906662]
[1726256728720,6.3620873,138.38,138.32,36.47906662]
[1726256728922,0.1848978,138.39,138.32,36.47906662]
[1726256729124,6.3620873,138.38,138.32,36.47906662]
[1726256729300,1.62965674,138.39,138.31,12.70218262]
[1726256729501,6.36208959,138.38,138.31,12.70218262]
[1726256729697,0.1848978,138.39,138.31,12.70218262]
[1726256729925,6.36208959,138.38,138.31,12.70218262]
[1726256730126,1.62965674,138.39,138.31,12.70218262]
[1726256730304,6.36234051,138.38,138.31,12.70218262]
[1726256730506,6.36234051,138.37,138.3,12.95316262]
[1726256730718,8.85565674,138.39,138.3,12.82767262]
[1726256730905,6.36249868,138.38,138.3,12.82767262]
[1726256731106,6.36249868,138.37,138.29,36.60455662]
[1726256731305,7.80725762,138.36,138.29,36.60455662]
[1726256731516,1.44475894,138.35,138.25,22.89992845]
[1726256731707,1.44475894,138.35,138.26,12.70218262]
[1726256732402,1.44475894,138.35,138.27,18.72368262]
[1726256732803,1.44475894,138.35,138.27,12.70218262]
[1726256733021,1.44475894,138.35,138.26,12.70218262]
[1726256733919,6.3634639,138.34,138.26,12.70218262]
[1726256734119,16.629,138.36,138.27,23.902374]
[1726256734322,6.36321707,138.35,138.28,12.70218262]
[1726256734517,16.629,138.36,138.28,12.70218262]
[1726256734700,6.36321381,138.35,138.28,12.70218262]
[1726256734901,16.629,138.36,138.28,12.70218262]
[1726256735102,6.36323042,138.35,138.28,12.70218262]
[1726256735328,6.36323042,138.34,138.28,12.70218262]
[1726256736712,16.629,138.36,138.28,12.70218262]
[1726256736913,6.36353229,138.35,138.28,12.70218262]
[1726256737111,6.36353229,138.34,138.28,12.70218262]
[1726256737337,6.36353229,138.33,138.28,12.70218262]
[1726256737526,16.629,138.36,138.28,12.70218262]
[1726256737820,6.36350318,138.35,138.28,12.70218262]
[1726256738022,6.36350318,138.34,138.29,12.70218262]
[1726256738327,6.36350318,138.33,138.29,12.70218262]
[1726256738527,16.629,138.36,138.29,12.70218262]
[1726256738725,6.36350223,138.35,138.29,12.70218262]
[1726256738919,6.36350223,138.34,138.3,0.36486124]
[1726256739225,6.36325316,138.33,138.3,0.36486124]
[1726256739428,16.629,138.36,138.29,12.70218262]
[1726256739629,6.36325183,138.35,138.29,12.70218262]
[1726256739804,6.36325183,138.34,138.29,12.70218262]
[1726256740109,6.36325183,138.33,138.3,0.367064]
[1726256740306,16.629,138.36,138.3,0.367064]
[1726256740623,6.36325183,138.35,138.29,12.70218262]
[1726256740822,6.36325183,138.34,138.3,13.06906083]
[1726256741023,6.36325183,138.33,138.3,13.06906083]
[1726256741216,6.36325183,138.32,138.31,0.47231338]
[1726256741819,16.629,138.36,138.31,0.47231338]
[1726256742125,6.36320489,138.35,138.31,13.174496]
[1726256742316,6.36320489,138.35,138.32,0.47227923]
[1726256742521,6.36320489,138.34,138.32,0.47227923]
[1726256742713,6.36320489,138.33,138.32,0.47227923]
[1726256742911,6.36320489,138.33,138.32,13.17446185]
[1726256743232,6.36320489,138.33,138.32,36.47906662]
[1726256743532,15.4755978,138.39,138.32,36.47906662]
[1726256743747,6.36255018,138.38,138.33,0.47764466]
[1726256743918,6.36255018,138.37,138.33,0.47764466]
[1726256744119,6.36255018,138.36,138.32,12.70218262]
[1726256744325,6.36255018,138.35,138.31,23.776884]
[1726256744527,6.36255018,138.34,138.31,23.776884]
[1726256744719,6.36255018,138.33,138.31,23.776884]
[1726256745027,15.4755978,138.39,138.31,36.47906662]
[1726256745225,6.3629275,138.38,138.32,12.70218262]
[1726256745431,6.3629275,138.37,138.32,12.70218262]
[1726256745631,6.3629275,138.36,138.32,12.70218262]
[1726256745836,6.3629275,138.35,138.31,36.47906662]
[1726256746016,6.3629275,138.34,138.3,15.4432]
[1726256746332,6.3629275,138.33,138.3,15.4432]
[1726256746513,6.3629275,138.32,138.3,15.4432]
[1726256746715,22.7015978,138.39,138.3,15.4432]
[1726256746909,6.36294477,138.38,138.3,15.4432]
[1726256747110,6.36294477,138.37,138.3,15.4432]
[1726256747311,22.7015978,138.39,138.3,15.4432]
[1726256747527,6.36294671,138.38,138.3,15.4432]
[1726256747736,7.80770565,138.37,138.3,15.4432]
[1726256747922,6.36294671,138.36,138.3,15.4432]
[1726256748123,6.36294671,138.35,138.3,15.4432]
[1726256748317,6.36294671,138.34,138.3,15.4432]
[1726256748525,6.36294671,138.33,138.29,23.776884]
[1726256748711,6.36294671,138.32,138.29,23.776884]
[1726256748911,6.36294671,138.31,138.29,23.776884]
[1726256749144,1.44475894,138.37,138.29,23.776884]
[1726256749332,6.36318735,138.36,138.29,23.776884]
[1726256749512,7.80794629,138.35,138.29,23.776884]
[1726256749835,6.36318735,138.34,138.29,23.776884]
[1726256750005,6.36318735,138.33,138.29,23.776884]
[1726256750208,6.36318735,138.32,138.29,23.776884]
[1726256750410,6.36318735,138.31,138.29,23.776884]
[1726256750608,1.44475894,138.37,138.29,23.776884]
[1726256750811,6.36318735,138.36,138.29,23.776884]
[1726256751016,7.80794629,138.35,138.29,23.776884]
[1726256751236,6.36318735,138.34,138.29,23.776884]
[1726256751422,6.36318735,138.33,138.29,23.776884]
[1726256751623,6.36318735,138.32,138.29,23.776884]
[1726256751932,6.36318735,138.31,138.29,23.776884]
[1726256752116,6.36318735,138.3,138.29,23.776884]
[1726256752317,6.36318735,138.3,138.29,36.47906662]
[1726256752517,0.25098,138.38,138.29,36.47906662]
[1726256752721,6.36327916,138.37,138.3,12.70218262]
[1726256752924,0.25098,138.38,138.3,12.70218262]
[1726256752925,6.36327916,138.36,138.3,12.70218262]
[1726256753124,6.36327916,138.35,138.3,12.70218262]
[1726256753326,6.36327916,138.34,138.3,12.70218262]
[1726256753517,6.36327916,138.33,138.3,12.70218262]
[1726256753725,0.25098,138.38,138.3,12.70218262]
[1726256753726,6.36327916,138.32,138.3,12.70218262]
[1726256753912,6.36327916,138.31,138.3,12.70218262]
[1726256754118,6.36327916,138.31,138.29,36.47906662]
[1726256754441,0.25098,138.38,138.29,36.47906662]
[1726256754640,6.36321534,138.37,138.29,36.47906662]
[1726256754939,6.36321534,138.36,138.29,36.47906662]
[1726256755240,6.36321534,138.35,138.29,36.47906662]
[1726256755415,6.36321534,138.34,138.29,36.47906662]
[1726256755616,6.36321534,138.33,138.29,36.47906662]
[1726256755816,6.36321534,138.32,138.29,36.47906662]
[1726256756032,6.36321534,138.31,138.29,36.47906662]
[1726256756237,6.36321534,138.3,138.29,36.47906662]
[1726256757717,6.36322541,138.3,138.29,36.47906662]
[1726256760929,6.36322541,138.3,138.29,23.776884]
[1726256761251,6.36322541,138.3,138.29,36.47906662]
[1726256766828,7.47748,138.38,138.29,36.47906662]
[1726256767025,6.36322541,138.37,138.29,23.776884]
[1726256767227,6.36322541,138.36,138.3,12.70218262]
[1726256767430,6.36322541,138.35,138.3,12.70218262]
[1726256767633,6.36322541,138.34,138.3,12.70218262]
[1726256767936,6.36322541,138.33,138.3,12.70218262]
[1726256768124,6.36322541,138.32,138.3,12.70218262]
[1726256768324,6.36322541,138.31,138.3,12.70218262]
[1726256770148,7.47748,138.38,138.3,12.70218262]
[1726256770332,6.36322351,138.37,138.29,36.47906662]
[1726256770649,7.47748,138.38,138.29,36.47906662]
[1726256770650,6.36322351,138.36,138.29,36.47906662]
[1726256770952,6.36322351,138.35,138.29,36.47906662]
[1726256771148,6.36322351,138.34,138.29,36.47906662]
[1726256771375,6.36322351,138.33,138.29,36.47906662]
[1726256771647,6.36322351,138.32,138.29,36.47906662]
[1726256771849,6.36322351,138.31,138.29,36.47906662]
[1726256772051,6.36322351,138.3,138.29,36.47906662]
[1726256772949,6.36322351,138.3,138.29,36.60455662]
[1726256773250,0.1382434,138.37,138.29,36.85553662]
[1726256773459,6.3629222,138.36,138.34,12.70218262]
[1726256773637,0.1382434,138.37,138.35,12.70218262]
[1726256774127,0.1382434,138.37,138.36,12.70218262]
[1726256777939,0.1382434,138.37,138.36,36.47906662]
[1726256778763,0.1382434,138.37,138.36,58.31053662]
[1726256783274,0.1382434,138.37,138.36,57.93406662]
[1726256783570,0.1382434,138.37,138.36,34.15718262]
[1726256784887,0.1382434,138.37,138.33,0.25098]
[1726256785168,0.1382434,138.37,138.35,12.70218262]
[1726256786063,0.1382434,138.37,138.34,12.70218262]
[1726256787259,0.1382434,138.37,138.35,12.70218262]
[1726256790069,0.1382434,138.37,138.33,23.776884]
[1726256790260,0.1382434,138.37,138.34,12.70218262]
[1726256791272,0.1382434,138.37,138.33,36.47906662]
[1726256792266,0.1382434,138.37,138.34,12.70218262]
[1726256794155,0.1382434,138.37,138.35,12.70218262]
[1726256794355,0.1382434,138.37,138.33,23.776884]
[1726256794356,0.1382434,138.37,138.36,12.70218262]
[1726256795356,0.1382434,138.37,138.35,12.70218262]
[1726256797358,0.1382434,138.37,138.36,12.70218262]
[1726256801278,0.1382434,138.37,138.36,36.47906662]
[1726256801450,0.1382434,138.37,138.36,36.85553662]
[1726256801768,0.1382434,138.37,138.36,36.73004662]
[1726256801965,0.1382434,138.37,138.36,36.47906662]
[1726256810375,0.1382434,138.37,138.36,23.776884]
[1726256810581,0.1382434,138.37,138.36,36.47906662]
[1726256810874,0.1382434,138.37,138.36,36.85553662]
[1726256811176,0.1382434,138.37,138.36,58.58203662]
[1726256813477,0.2556867,138.4,138.37,24.027864]
[1726256813776,0.2556867,138.4,138.39,36.73004662]
[1726256814081,0.2556867,138.4,138.39,36.85553662]
[1726256815064,0.2556867,138.4,138.39,36.47906662]
[1726256817079,0.2556867,138.4,138.37,12.82767262]
[1726256817284,0.2556867,138.4,138.38,23.776884]
[1726256817884,0.2556867,138.4,138.37,12.70218262]
[1726256818066,0.2556867,138.4,138.38,12.70218262]
[1726256819086,0.2556867,138.4,138.39,12.70218262]
[1726256823777,0.2556867,138.4,138.39,36.47906662]
[1726256824566,0.2556867,138.4,138.36,21.7265]
[1726256824768,0.2556867,138.4,138.38,12.70218262]
[1726256824987,0.2556867,138.4,138.39,36.73004662]
[1726256825296,0.2556867,138.4,138.39,36.85553662]
[1726256825500,0.2556867,138.4,138.39,36.47906662]
[1726256825671,0.2556867,138.4,138.38,12.70218262]
[1726256826780,0.2556867,138.4,138.36,34.42868262]
[1726256826982,0.2556867,138.4,138.34,7.50320566]
[1726256827189,0.2556867,138.4,138.34,20.20538828]
[1726256827495,0.2556867,138.4,138.34,12.70218262]
[1726256828194,0.2556867,138.4,138.35,12.70218262]
[1726256830505,0.2556867,138.4,138.34,12.70218262]
[1726256831001,0.2556867,138.4,138.33,12.70218262]
[1726256831201,0.2556867,138.4,138.32,28.69888262]
[1726256831501,0.12549,138.39,138.31,7.50625814]
[1726256831679,1.69573894,138.39,138.3,18.72328262]
[1726256833006,0.2556867,138.4,138.34,12.70218262]
[1726256833679,0.2556867,138.4,138.35,12.70218262]
[1726256835104,0.2556867,138.4,138.33,12.70218262]
[1726256835275,0.2556867,138.4,138.3,6.0211]
[1726256835479,0.2556867,138.4,138.31,12.70218262]
[1726256835880,0.12549,138.39,138.32,12.70218262]
[1726256836489,0.25098,138.39,138.31,12.70218262]
[1726256837410,0.25098,138.39,138.31,36.47906662]
[1726256837608,0.25098,138.39,138.32,12.70218262]
[1726256841912,0.2556867,138.4,138.33,12.70218262]
[1726256842095,0.2556867,138.4,138.32,12.70218262]
[1726256842294,0.2556867,138.4,138.31,36.47906662]
[1726256842295,1.70044564,138.4,138.31,36.47906662]
[1726256842495,1.70044564,138.4,138.32,12.70218262]
[1726256843816,0.2556867,138.4,138.32,12.70218262]
[1726256846621,1.70044564,138.4,138.32,12.70218262]
[1726256849519,0.12549,138.39,138.32,12.70218262]
[1726256850319,23.0799,138.38,138.28,23.97324932]
[1726256850518,1.44475894,138.37,138.28,36.67543194]
[1726256850819,1.44475894,138.37,138.28,29.16758262]
[1726256851207,1.44475894,138.37,138.28,12.70218262]
[1726256851422,0.37647,138.36,138.28,12.70218262]
[1726256852104,0.12549,138.36,138.29,12.70218262]
[1726256852993,0.25098,138.37,138.26,7.76547519]
[1726256852994,0.12549,138.37,138.31,12.70218262]
[1726256853201,23.0799,138.38,138.32,12.70218262]
[1726256854423,23.0799,138.38,138.31,12.70218262]
[1726256854597,1.44475894,138.37,138.31,12.70218262]
[1726256854804,1.44475894,138.37,138.27,24.027864]
[1726256854805,1.44475894,138.37,138.3,12.70218262]
[1726256855308,23.0799,138.38,138.3,12.70218262]
[1726256856310,1.44475894,138.37,138.3,12.70218262]
[1726256856511,1.44475894,138.37,138.29,12.70218262]
[1726256856711,1.44475894,138.37,138.3,12.70218262]
[1726256856904,23.0799,138.38,138.3,12.70218262]
[1726256857631,1.44475894,138.37,138.3,12.70218262]
[1726256857928,23.0799,138.38,138.3,12.70218262]
[1726256858613,30.3065,138.38,138.29,12.70218262]
[1726256858827,23.0799,138.38,138.3,23.776884]
[1726256859328,1.44475894,138.37,138.3,23.776884]